Cogmind - Beta 17 @@@ ROGUE MODE // 2026.08.01 @ 18:53:29 Player: Akl Result: Destroyed by X-67 Chaingunner with Minigun Performance ------------- Evolutions (4) 2000 Regions Visited (6) 1200 Robots Destroyed (113) 565 Value Destroyed (4173) 4173 Prototype IDs (9) 180 Alien Tech Used (0) 0 Bonus (0) 0 TOTAL SCORE: 8118 Bonus ------- None Cogmind --------- Core Integrity 0/850 Matter 300/300 Energy 97/100 System Corruption 3% Temperature Cool (0) Movement Core (400) Ox7 Location -6/Factory Parts ------- > --- POWER (1) -------- (None) > --- PROPULSION (5) --- (None) > --- UTILITY (6) ------ Large Storage Unit Enhanced Optical Array Target Analyzer Target Analyzer Armor Integrity Analyzer Focal Shield > --- WEAPON (3) ------- Power Sword > --- INVENTORY (15) --- Carbon-fiber Leg Carbon-fiber Leg Improved Sensor Array Improved Signal Interpreter Advanced Targeting Computer Force Field Recalibrator Gauss Rifle Peak State ------------ > --- POWER ------------ Fission Core > --- PROPULSION ------- Improved Carbon-fiber Leg Improved Titanium Leg Improved Titanium Leg Improved Titanium Leg Improved Titanium Leg > --- UTILITY ---------- Large Storage Unit Enhanced Optical Array Improved Signal Interpreter Advanced Targeting Computer Target Analyzer Armor Integrity Analyzer > --- WEAPON ----------- Gauss Cannon Scythe Scythe > --- INVENTORY -------- Deuterium Engine Carbon-fiber Leg Carbon-fiber Leg VSS Leg Improved Sensor Array Improved Signal Interpreter Advanced Targeting Computer Force Field Recalibrator Autogun Autogun Gauss Rifle Assault Cannon Heavy Rocket Launcher [Rating: 58] Favorites ----------- Power Heavy Deuterium Engine Engine Heavy Deuterium Engine Power Core Fission Core Propulsion Carbon-fiber Leg Treads Light Treads Leg Carbon-fiber Leg Wheel Wheel Flight Unit VTOL Module Utility Large Storage Unit Device Structural Scanner Storage Large Storage Unit Processor Improved Signal Interpreter Protection Light Armor Plating Weapon Scythe Energy Gun Beam Rifle Ballistic Gun Autogun Ballistic Cannon Assault Cannon Launcher Mini Grenade Launcher Slashing Weapon Scythe Build | -11 -10 -10 -9 -8 -7 -6 ------- Run | Yrd Mat Min Mat Mat Fac Fac Slots Evolved 8 | . . . 2 2 2 2 Power . | . . . . . . . Propulsion 3 | . . . 1 1 . 1 Utility 4 | . . . 1 1 1 1 Weapon 1 | . . . . . 1 . Parts Attached 104 | 4 2 11 13 24 21 29 Power 9 | . . 1 1 1 3 3 Engine 6 | . . 1 1 . 3 1 Core 3 | . . . . 1 . 2 Reactor . | . . . . . . . Propulsion 50 | 2 . 4 6 16 6 16 Treads 3 | . . 1 2 . . . Leg 42 | 2 . 2 2 14 6 16 Wheel 4 | . . 1 1 2 . . Hover . | . . . . . . . Flight 1 | . . . 1 . . . Utility 18 | . . 2 2 4 5 5 Device 5 | . . . . 3 1 1 Storage 2 | . . . 1 . 1 . Processor 9 | . . 1 . 1 3 4 Hackware . | . . . . . . . Protection 2 | . . 1 1 . . . Artifact . | . . . . . . . Weapon 27 | 2 2 4 4 3 7 5 Energy Gun 3 | . . 2 1 . . . Energy Cannon . | . . . . . . . Ballistic Gun 12 | 2 1 2 1 1 2 3 Ballistic Cannon 4 | . . . 1 . 2 1 Launcher 2 | . . . 1 . 1 . Special Weapon . | . . . . . . . Impact Weapon . | . . . . . . . Slashing Weapon 6 | . 1 . . 2 2 1 Piercing Weapon . | . . . . . . . Special Melee Weapon . | . . . . . . . Unidentified Prototypes 1 | . . . . . 1 . Parts Lost 55 | . . . 5 11 10 29 Power 5 | . . . 1 . 1 3 Propulsion 27 | . . . 1 8 4 14 Utility 7 | . . . 1 2 2 2 Weapon 16 | . . . 2 1 3 10 Highest Loss Streak 10 | . . . 3 5 5 10 To Critical Strikes . | . . . . . . . Average Backups 11 | 1 3 4 9 13 13 11 Power 1 | . 1 1 1 2 1 . Propulsion 2 | . 1 . 1 1 2 2 Utility 3 | . . 1 1 2 5 4 Weapon 4 | . 1 1 4 6 4 3 Tool/Special . | . . . . . . . Unused Backups 17 | . . . . 2 8 7 Power 2 | . . . . 1 1 . Propulsion . | . . . . . . . Utility 8 | . . . . 1 2 5 Weapon 6 | . . . . . 4 2 Tool/Special 1 | . . . . . 1 . Average Slot Usage (%) 91 | . 52 76 93 88 97 93 Engine 5 | . . 6 10 5 6 1 Core 2 | . . . . 3 . 4 Treads 2 | . . 6 10 4 . . Leg 23 | . 28 15 . 22 29 29 Wheel 3 | . . 6 18 2 . . Device 5 | . . . . 9 9 2 Storage 6 | . . . 10 9 7 6 Processor 18 | . . 6 11 12 18 28 Protection 1 | . . 6 8 1 . . Ballistic Gun 8 | . 23 25 12 2 9 3 Ballistic Cannon 2 | . . . 4 . 2 3 Launcher 1 | . . . 3 3 . 1 Slashing Weapon 7 | . . . . 10 10 8 Peak Build Rating 58 | 4 4 9 14 30 45 58 Average Rating 32 | 2 3 6 11 18 39 51 On Entrance 14 | . 4 4 9 14 30 41 Avg Prop Armor Cover (%) 14 | 21 22 16 9 11 . . Naked Turns . | . . . . . . . Heaviest Build 46 | 3 3 14 37 39 46 44 Greatest Support 98 | 10 3 10 20 60 73 98 Greatest Overweight (x) 11 | . . 1 3 11 . 2 Average Overweight (x) . | . . . 1 . . . Largest Inventory Capacity 15 | 5 5 5 15 15 15 15 Average Capacity 13 | 5 5 5 14 15 15 15 Most Carried 15 | 2 5 5 13 15 15 15 Average Carried 11 | 1 3 4 9 13 13 11 Final Capacity 15 | 5 5 5 15 15 15 15 Final Carried 15 | 2 4 5 13 15 14 8 Class Distribution -------------------- 56% | Mutant 33% | Scavenger-Mutant 9% | Gunner Dominant Class ---------------- Mutant | -10/Materials Scavenger-Mutant | -10/Mines Scavenger-Mutant | -9/Materials Scavenger-Mutant | -8/Materials Mutant | -7/Factory Mutant | -6/Factory Resources | -11 -10 -10 -9 -8 -7 -6 ----------- Run | Yrd Mat Min Mat Mat Fac Fac Matter Collected 2511 | 148 . 324 327 454 529 729 Remotely . | . . . . . . . Salvage Created 4125 | . . 122 935 777 900 1391 Parts 233 | . . 8 57 53 47 68 Haulers Intercepted . | . . . . . . . Recyclers Shooed 1 | . . . . 1 . . Parts Field Recycled . | . . . . . . . Retrieved Matter . | . . . . . . . Parts Self-Destructed . | . . . . . . . Prevented . | . . . . . . . Parts Restored . | . . . . . . . Kills | -11 -10 -10 -9 -8 -7 -6 ------- Run | Yrd Mat Min Mat Mat Fac Fac Combat Hostiles Destroyed 90 | . . 6 22 18 20 24 Melee 30 | . . . . 6 9 15 Guns 31 | . . 6 8 3 9 5 Cannons 12 | . . . 9 . 2 1 AOE 17 | . . . 5 9 . 3 Classes Destroyed 15 | . . 3 6 3 2 1 Worker 6 | . . . . 3 . 3 Builder 3 | . . . 1 1 . 1 Tunneler 1 | . . . . 1 . . Recycler 4 | . . . 2 1 . 1 Mechanic 2 | . . . 1 . . 1 Watcher 8 | . . . 1 2 2 3 Swarmer 16 | . . 3 2 3 3 5 Grunt 47 | . . 2 16 11 9 9 Brawler 2 | . . . 1 . . 1 Duelist 2 | . . . . 2 . . Sentry 11 | . . . 3 2 5 1 Specialist 1 | . . . . . . 1 Hunter 4 | . . . . . 1 3 Programmer 6 | . . . . . 2 4 Assembled 1 | . . 1 . . . . Best Kill Streak 12 | . . 3 12 10 4 9 Combat Bots Only 8 | . . 3 8 7 4 6 Max Kills in Single Turn 3 | . . 1 2 3 1 3 Gunslinging . | . . . . . . . Exploded 3 | . . . 1 3 . 2 Melee 1 | . . . . 1 1 1 Uniques/NPCs Destroyed . | . . . . . . . Combat | -11 -10 -10 -9 -8 -7 -6 -------- Run | Yrd Mat Min Mat Mat Fac Fac Hostile Shots Fired 839 | . . 50 88 85 251 365 Missed 257 | . . 11 31 16 80 119 Hits 582 | . . 39 57 69 171 246 Melee 12 | . . . . 6 . 6 Projectile 570 | . . 39 57 63 171 240 Critical Strikes 14 | . . . 2 3 2 7 Part Disruptions 3 | . . . . . . 3 Damage Taken 8702 | . 13 457 761 1394 1894 4183 Core 1593 | . 13 134 31 351 211 853 Absorbed by Shields 24 | . . . . 24 . . Ignored by Resistances 327 | . . . . . . 327 Core Remaining (%) 67 | 100 . 41 92 36 69 . Volleys Fired 241 | . . 24 68 26 58 65 Largest 2 | . . 2 2 1 2 1 Hottest 105 | . . 105 56 30 46 40 Shots Fired 280 | . . 48 80 26 60 66 Gun 165 | . . 48 40 14 34 29 Cannon 86 | . . . 34 . 26 26 Launcher 29 | . . . 6 12 . 11 Special . | . . . . . . . Kinetic 249 | . . 46 74 14 60 55 Thermal 2 | . . 2 . . . . Explosive 29 | . . . 6 12 . 11 Electromagnetic . | . . . . . . . Robot Hit Streak 21 | . . 4 21 13 12 3 Robot Miss Streak 5 | . . 5 2 1 3 4 Penetration Max 1 | . . . . . . 1 Secondary Targets 2 | . . 2 . . . . Max Gunslinging Chain 1 | . . 1 . . . . Shots Hit Robots 304 | . . 23 63 55 73 90 Core Hits 192 | . . 9 40 54 37 52 Critical Kills 1 | . . . . . . 1 Critical Parts Destroyed 1 | . . . . . . 1 Critical Strikes 32 | . . . . 5 7 20 Destroy 2 | . . . . . . 2 Blast 3 | . . . . . 1 2 Sever 27 | . . . . 5 6 16 Melee Attacks 158 | . . . . 53 39 66 Impact . | . . . . . . . Slashing 158 | . . . . 53 39 66 Piercing . | . . . . . . . Sneak Attacks 9 | . . . . 4 . 5 Combat Hostiles 1 | . . . . . . 1 Follow-up Attacks 8 | . . . . . 5 3 Damage Inflicted 9171 | . . 274 1606 1796 1756 3739 Guns 1746 | . . 274 429 187 508 348 Cannons 1415 | . . . 542 . 476 397 Explosions 2719 | . . . 628 990 . 1101 Melee 3266 | . . . . 609 772 1885 Ramming 25 | . . . 7 10 . 8 Kinetic 3148 | . . 261 971 187 984 745 Thermal 107 | . . 13 . . . 94 Explosive 2625 | . . . 628 990 . 1007 Electromagnetic . | . . . . . . . Impact . | . . . . . . . Slashing 3266 | . . . . 609 772 1885 Piercing . | . . . . . . . Highest Corruption 3 | . . . . . 3 3 Average Corruption 2 | . . . . . 2 1 Corruption Purged . | . . . . . . . Corruption Blocked . | . . . . . . . Effects 17 | . . . . . 12 5 Message Errors 3 | . . . . . 2 1 Matter Fused 5 | . . . . . 3 2 Heat Flow Errors 5 | . . . . . 4 1 Energy Discharges 1 | . . . . . 1 . Misfires 2 | . . . . . 1 1 Alerts 1 | . . . . . 1 . Overload Shots . | . . . . . . . Overflow Damage 224 | . . . 6 42 . 176 Projectiles 17 | . . . . . . 17 Explosions 87 | . . . 6 12 . 69 Melee 120 | . . . . 30 . 90 Knockbacks 6 | . . . 2 . 1 3 Impact . | . . . . . . . Kinetic 6 | . . . 2 . 1 3 Secondary . | . . . . . . . Self-Inflicted Damage 316 | . . . 63 246 . 7 Shots 13 | . . . 2 10 . 1 Rammed 4 | . . . 3 1 . . Targets Rammed 6 | . . . 3 1 . 2 Kicked 2 | . . . . . . 2 Crushed . | . . . . . . . Highest Temperature 179 | . . 39 57 20 179 121 Average Temperature 27 | . . 8 13 8 55 53 Received Heat Transfer 2274 | . . 165 354 549 486 720 Siege Activations . | . . . . . . . Martial Activations . | . . . . . . . Shielding Activations . | . . . . . . . Robots Disrupted . | . . . . . . . Combat Hostiles . | . . . . . . . Robots Corrupted . | . . . . . . . Combat Hostiles . | . . . . . . . Parts Fried . | . . . . . . . Impact Corruptions . | . . . . . . . Robots Melted . | . . . . . . . Combat Hostiles . | . . . . . . . Parts Melted . | . . . . . . . Heat Transferred 87 | . . 37 . . . 50 Parts Sabotaged . | . . . . . . . Parts Stolen . | . . . . . . . Parts Stripped . | . . . . . . . Power Chain Reactions . | . . . . . . . Alert | -11 -10 -10 -9 -8 -7 -6 ------- Run | Yrd Mat Min Mat Mat Fac Fac Maximum Alert Level 1 | . . . 1 1 . 1 Low Security (%) 83 | 100 100 100 67 30 100 96 Level 1 16 | . . . 32 69 . 3 Level 2 . | . . . . . . . Level 3 . | . . . . . . . Level 4 . | . . . . . . . Level 5 . | . . . . . . . High Security . | . . . . . . . Max Security . | . . . . . . . Peak Influence 375 | . 7 75 375 374 150 269 Initial 154 | . . . . 154 102 66 Average 99 | . . 27 139 215 73 67 Influence Increases 3031 | . 12 135 652 713 624 895 Destroy 0b10 Robot/C 1780 | . . 100 440 360 400 480 Destroy 0b10 Robot/NC 120 | . . . 25 40 10 45 Destroy Leader 436 | . . 20 102 84 124 106 Successful Hack 88 | . 12 . 11 31 26 8 Disable Machine 165 | . . . 30 60 45 30 Destroy Structure 187 | . . . 44 78 4 61 Partial Spotted 15 | . . 15 . . . . Lose Combat Pursuer 240 | . . . . 60 15 165 Influence Decreases 2792 | . 12 135 285 853 714 793 Entered New Map 409 | . . . . 213 125 71 Time Decay 1683 | . 12 135 235 380 489 432 Lost Part 550 | . . . 50 110 100 290 Purge Threat 150 | . . . . 150 . . Squads Dispatched 22 | . . . 3 3 8 8 Investigation 10 | . . . 1 1 5 3 Extermination 6 | . . . . . 3 3 Reinforcement 6 | . . . 2 2 . 2 Assault . | . . . . . . . Garrison . | . . . . . . . Intercept . | . . . . . . . Searches Triggered . | . . . . . . . Construction Impeded 2 | . . . . 1 . 1 Haulers Reinforced 1 | . . . . . . 1 Active Scanning Responses . | . . . . . . . Cargo Convoy Interrupts 1 | . . . . . . 1 Stealth | -11 -10 -10 -9 -8 -7 -6 --------- Run | Yrd Mat Min Mat Mat Fac Fac Distress Signals 9 | . . 1 1 1 2 4 Communications Jammed . | . . . . . . . Distress Signals . | . . . . . . . Times Spotted 156 | . 1 13 28 29 26 59 Peak Tracking Total 11 | . 1 4 8 9 8 11 Tactical Retreats 12 | . . 1 . 4 1 6 Traps | -11 -10 -10 -9 -8 -7 -6 ------- Run | Yrd Mat Min Mat Mat Fac Fac Traps Triggered 5 | . 1 . . . 2 2 Indirectly . | . . . . . . . Trap Hack Attempts . | . . . . . . . Triggered . | . . . . . . . Disarmed . | . . . . . . . Reprogrammed . | . . . . . . . Reused . | . . . . . . . Traps Extracted . | . . . . . . . Installed . | . . . . . . . Triggered . | . . . . . . . Machines | -11 -10 -10 -9 -8 -7 -6 ---------- Run | Yrd Mat Min Mat Mat Fac Fac Machines Disabled 11 | . . . 2 4 3 2 Max in Single Turn 2 | . . . 1 2 1 1 Garrison Access 1 | . . . . . 1 . Machines Repaired . | . . . . . . . Machines Dismantled . | . . . . . . . Machines Sabotaged . | . . . . . . . Overloaded Fab Kills . | . . . . . . . Hacking | -11 -10 -10 -9 -8 -7 -6 --------- Run | Yrd Mat Min Mat Mat Fac Fac Machines Accessed 21 | . 3 . 3 4 8 3 Terminals 12 | . 3 . 2 4 3 . Fabricators 1 | . . . . . 1 . Repair Stations . | . . . . . . . Recycling Units . | . . . . . . . Scanalyzers 7 | . . . 1 . 3 3 Garrison Access 1 | . . . . . 1 . Total Hacks 75 | . 6 . 12 16 27 14 Successful 47 | . 3 . 9 8 15 12 Failed 27 | . 3 . 3 8 12 1 Catastrophic 3 | . . . . 2 1 . Database Lockouts 1 | . . . . . . 1 Manual 13 | . 2 . . 5 6 . Terminals 39 | . 6 . 9 16 8 . Fabricators 3 | . . . . . 3 . Repair Stations . | . . . . . . . Recycling Units . | . . . . . . . Scanalyzers 31 | . . . 3 . 14 14 Garrison Access 2 | . . . . . 2 . Terminal Hacks 18 | . 3 . 6 7 2 . Record 3 | . . . 3 . . . Robot Analysis 1 | . . . 1 . . . Prototype ID Bank 5 | . 2 . . 2 1 . Unreport Threat 1 | . . . . 1 . . Locate Traps 2 | . . . 1 . 1 . Surveillance Status 2 | . . . . 2 . . Patrol Status 1 | . 1 . . . . . Recall Investigation 2 | . . . 1 1 . . Zone Layout 1 | . . . . 1 . . Fabricator Hacks 1 | . . . . . 1 . Network Status 1 | . . . . . 1 . Repair Station Hacks . | . . . . . . . Recycling Unit Hacks . | . . . . . . . Scanalyzer 25 | . . . 3 . 10 12 Insert Component 8 | . . . . . 3 5 Analyze 10 | . . . . . 4 6 Retrieve Study 7 | . . . 3 . 3 1 Garrison Access Hacks 1 | . . . . . 1 . Seal Access 1 | . . . . . 1 . Unauthorized Hacks 2 | . . . . 1 1 . Terminals 2 | . . . . 1 1 . Botnet 2 | . . . . 1 1 . Fabricators . | . . . . . . . Repair Stations . | . . . . . . . Recycling Units . | . . . . . . . Scanalyzers . | . . . . . . . Garrison Access . | . . . . . . . Data Cores Recovered . | . . . . . . . Used . | . . . . . . . Hacking Detections 14 | . 1 . 2 1 7 3 Full Trace Events 10 | . . . 1 1 5 3 Feedback Events . | . . . . . . . Feedback Blocked . | . . . . . . . Robot Schematics Acquired . | . . . . . . . Robots Built . | . . . . . . . Authchips . | . . . . . . . Time . | . . . . . . . Total Robot Build Rating . | . . . . . . . Part Schematics Acquired 6 | . . . . . 2 4 Parts Built . | . . . . . . . Authchips . | . . . . . . . Time . | . . . . . . . Total Part Build Rating . | . . . . . . . Part Studies Acquired 7 | . . . 3 . 3 1 Parts Repaired . | . . . . . . . Time . | . . . . . . . Parts Recycled . | . . . . . . . Recycled Matter . | . . . . . . . Retrieved Matter . | . . . . . . . Retrieved Components . | . . . . . . . Parts Scanalyzed 8 | . . . . . 3 5 Part Schematics Acquired 6 | . . . . . 2 4 Parts Damaged . | . . . . . . . Bothacking | -11 -10 -10 -9 -8 -7 -6 ------------ Run | Yrd Mat Min Mat Mat Fac Fac Used RIF Installer . | . . . . . . . Robots Hacked . | . . . . . . . Non-combat . | . . . . . . . Combat . | . . . . . . . Robot Hacks Applied . | . . . . . . . Relay Couplers Released . | . . . . . . . Fabnet Peak Effective % . | . . . . . . . Robots Rewired . | . . . . . . . Allies Hacked . | . . . . . . . Hacks Repelled . | . . . . . . . Allies | -11 -10 -10 -9 -8 -7 -6 -------- Run | Yrd Mat Min Mat Mat Fac Fac Total Allies . | . . . . . . . Largest Group . | . . . . . . . Highest-Rated Group . | . . . . . . . Highest-Rated Ally . | . . . . . . . Total Orders . | . . . . . . . Ally Attacks . | . . . . . . . Total Damage . | . . . . . . . Kills . | . . . . . . . Allies Corrupted . | . . . . . . . Allies Melted . | . . . . . . . Intel | -11 -10 -10 -9 -8 -7 -6 ------- Run | Yrd Mat Min Mat Mat Fac Fac Active Infowar (turns) 3814 | . . . . 744 1617 1453 Optics 1956 | . . . . . 503 1453 Sensors 138 | . . . . 138 . . Structural 1858 | . . . . 744 1114 . Robot Analysis Total 1 | . . . 1 . . . Derelict Logs Recovered 1 | . . 1 . . . . Drone Launches . | . . . . . . . Drone Recoveries . | . . . . . . . Exploration | -11 -10 -10 -9 -8 -7 -6 ------------- Run | Yrd Mat Min Mat Mat Fac Fac Turns Passed 5054 | 27 84 381 595 883 1631 1453 Spaces Moved 3355 | 36 149 385 335 472 1097 881 Core 404 | 34 149 220 . 1 . . Treads 144 | . . . 39 105 . . Legs 2250 | 2 . 1 2 267 1097 881 Wheels 557 | . . 164 294 99 . . Hover . | . . . . . . . Flight . | . . . . . . . Fastest Speed 50 | 50 50 50 95 85 110 105 Average Speed 112 | 53 50 72 120 126 121 120 Slowest Speed 600 | 120 50 120 330 600 125 270 Overloaded Moves . | . . . . . . . Propulsion Burnouts . | . . . . . . . Robots Hopped . | . . . . . . . Potential Cave-ins . | . . . . . . . Cave-ins Triggered . | . . . . . . . Exploration Rate (%) 34 | 2 24 77 41 35 34 28 Regions Visited 6 Branch Regions 1 Pre-discovered Areas 1 | . . 1 . . . . Known Exits Taken 2 | . . . . 1 1 . Unknown Exits Taken 4 | 1 1 1 1 . . . Scrap Searched . | . . . . . . . Spaces Dug 4 | . . . . 4 . . Terrain Destroyed 255 | . . . 51 111 4 89 Melee 4 | . . . . 4 . . Projectile 11 | . . . . . 4 7 AOE 240 | . . . 51 107 . 82 Terrain Rammed . | . . . . . . . Walls Destroyed . | . . . . . . . Machines Disabled . | . . . . . . . Actions | -11 -10 -10 -9 -8 -7 -6 --------- Run | Yrd Mat Min Mat Mat Fac Fac Total 4119 | 41 158 446 446 627 1291 1110 Wait 138 | . . 13 14 22 44 45 Move 3349 | 35 148 384 334 471 1096 881 Hop . | . . . . . . . Pick Up 55 | 2 4 6 10 10 19 4 Fast Attach 39 | 4 1 4 5 11 4 10 Attach 40 | . 2 5 4 4 9 16 Detach 2 | . . . 1 . . 1 Swap 46 | . . 2 5 12 12 15 Drop 53 | . 3 8 2 17 17 6 Fire 241 | . . 24 68 26 58 65 Melee 148 | . . . . 53 32 63 Ram 3 | . . . 3 . . . Kick 2 | . . . . . . 2 Crush 1 | . . . . 1 . . Escape Stasis 2 | . . . . . . 2 Rewire . | . . . . . . . Trap . | . . . . . . . Miscellaneous . | . . . . . . . Route ------- -11/Scrapyard -10/Materials -10/Mines -9/Materials -8/Materials -7/Factory -6/Factory History --------- Turn | Location | Event 9 | -11/Scrapyard | Discovered new exit (range 16) 28 | -11/Scrapyard | Entered Materials 108 | -10/Materials | Discovered new exit (range 4) 112 | -10/Materials | Entered Mines 143 | -10/Mines | Assembled infested the area 169 | -10/Mines | A weapon hastily lodged in a ceiling crevice suddenly fell to the ground 178 | -10/Mines | Learned location of Zion (-6) 244 | -10/Mines | Core integrity fell below 50% 296 | -10/Mines | Joined a pair of Derelicts in attacking an 0b10 outpost 477 | -10/Mines | Discovered new exit (range 12) 493 | -10/Mines | Entered Materials 493 | -9/Materials | Evolved 2 slots: Propulsion x1, Utility x1 568 | -9/Materials | Build established: Scavenger-Mutant 961 | -9/Materials | Destroyed 8 combat bots 973 | -9/Materials | Lost 3 parts (1p1n1w) 1020 | -9/Materials | Discovered new exit (range 16) 1088 | -9/Materials | Entered another Materials area 1088 | -8/Materials | Evolved 2 slots: Propulsion x1, Utility x1 1160 | -8/Materials | Destroyed 7 combat bots 1296 | -8/Materials | Lost 5 parts (4n1u) 1584 | -8/Materials | Core integrity fell below 50% 1626 | -8/Materials | Lost 4 parts (3n1u) 1903 | -8/Materials | Build established: Mutant 1936 | -8/Materials | Discovered new exit (range 13) 1970 | -8/Materials | Identified exit to Factory 1971 | -8/Materials | Entered Factory 1971 | -7/Factory | Evolved 2 slots: Utility x1, Weapon x1 2550 | -7/Factory | Lost 4 parts (2n2w) 2828 | -7/Factory | Build established: Gunner 3137 | -7/Factory | Lost 5 parts (1p1n2u1w) 3314 | -7/Factory | Build established: Mutant 3495 | -7/Factory | Discovered new exit (range 15) 3600 | -7/Factory | Identified exit to Factory 3602 | -7/Factory | Entered another Factory area 3602 | -6/Factory | Evolved 2 slots: Propulsion x1, Utility x1 4045 | -6/Factory | Central database locked down 4275 | -6/Factory | Lost 8 parts (1p3n1u3w) 4427 | -6/Factory | Allied Derelicts emerged from ambush trap array 4446 | -6/Factory | Spotted B-75 Beast 4456 | -6/Factory | Core integrity fell below 50% 4499 | -6/Factory | Lost 3 parts (1n1u1w) 4810 | -6/Factory | Lost 3 allies 4881 | -6/Factory | Build established: Scavenger-Mutant 4898 | -6/Factory | Cargo convoy interrupted 4968 | -6/Factory | Lost 3 parts (2n1w) 4977 | -6/Factory | Core integrity fell below 20% 5055 | -6/Factory | Destroyed by X-67 Chaingunner with Minigun Last Messages --------------- 05028_ K-01 Serf collects debris. 05029_ P-60 Hacker suffers critical hit (Destroy). 05029_ Destroyed Shock Rifle. 05031_ Acquired 30 matter. 05032_ P-60 Hacker destroyed. 05032_ R-10 Processor collects Imp. Heat Sink. 05033_ Acquired 46 matter. 05033_ Flexi-carbon Leg destroyed. 05034_ S-27 Virus destroyed. 05035_ R-10 Processor collects Autogun+. 05038_ Carbon-fiber Leg destroyed. 05044_ X-72 Disruptor destroyed. 05047_ Autogun+ destroyed. 05048_ Mic. Nuclear Core destroyed. 05053_ Imp. VSS Leg destroyed. 05053_ X-67 Chaingunner Flexi-carbon Leg severed. 05054_ R-10 Processor collects Imp. Arc Projector. Map ----- +----------------------------------------------------+ | ??????????????????????? ?????????????????????????? | | ????????????????????? ?????????????????????????? | | ????????????????????? ?????????????????????????? | | ????????????????????? ?????????????????????????? | | ????????????????????? ?????????????????????????? | | ????????????????????? ????????????????????????? | | ?????????????????????# ????????????????????????? | | ?????????????????????# ????????????????????????? | | ?????????????????????# ????????????????????????? | | ?????????????????????# ????????????????????????? | | ?????????????????????# ????????????????????????? | | ?????????????????????# ????????????????????????? | | ?????????????????????# ????????????????????????? | | ?????????????????????# w????????????????????????? | | ?????????????????????? ????????????????????????? | | ?????????????????????? ####????????????????????? | | ??????????????????????? ?????????????????????? | | ??????????????????????? ?????????????????????? | | ???????????????????????? ??????????????????????? | | ???????????????????????? = ??????????????????##### | | ????????????????????????#s#??????????????????# | | ????????????????????????#!#??????????????????# | | ????????????????????????#%#??????????????????# | | ????????????????????????#*#??????????????????# | | ????????????????????????#=#??????????????????# | | ????????????????????????#@#??????????????????# | | ????????????????????????#x#???????????####+### | | ????????????????????????#%#???????????# | | ????????????????????????# #???????????# | | ????????????????????????#h#???????????# | | ????????????????????#####R###?????????# | | ????????????????????+ #?????????# | | ????????????????????# #?????????# | | ???????????###/###### #######+### | | ?????? k | | ????? | | ?????? | | ?????? | | ?????? | | ?????? #### #######+######+############## | | ??????? ????# ????? ?????????????????# | | ??????? ?????# ???? ??????????????????# | | ???????? ??????#???? ???????????????????# | | ???????? ?????????? ""????????????????????# "" | | ???????? ??????????# "?????????????????????# "" | | ?????????????????????# ??????????????????????# "" | | ?????????????????????# ???????????????????????# "" | | ?????????????????????#????????????????????????# | | ???????????????????????#################??????#### | | ???????????????????????# #?????????? | +----------------------------------------------------+ Best States ------------- Heat Dissipation 37 Energy Generation 18 Energy Capacity 310 Matter Stores 300 Matter Capacity 300 Sight Range 22 Robot Scan Range 15 Terrain Scan Density 10 Armor Coverage 150 Resistance: KI 20 Evasion (%) 55 Targeting Accuracy 8 Target Analysis 7 Armor Integrity Analysis 30 Recoil Reduction 2 Kinecelleration 30 Item Schematics ----------------- Autogun | -7/Factory | Scanalyzed Adv. Targeting Computer | -7/Factory | Scanalyzed Scythe | -6/Factory | Scanalyzed Force Field | -6/Factory | Scanalyzed VSS Leg | -6/Factory | Scanalyzed Imp. Signal Interpreter | -6/Factory | Scanalyzed Robot Schematics ------------------ None Fabricated ------------ Nothing Repaired ---------- Nothing Studied --------- Wheel | -9/Materials | Hacked Lgt. Treads | -9/Materials | Hacked Mni. Grenade Launcher | -9/Materials | Hacked Minigun | -7/Factory | Hacked Scythe | -7/Factory | Hacked Autogun | -7/Factory | Hacked VSS Leg | -6/Factory | Hacked Alien Tech Used ----------------- None Achievements -------------- None Challenges ------------ None Game ------ Seed ChromionAbsorptionNetwork Manual? 0 Play Time 01:01:12 Cumulative 19.0 hours Start 2026.08.01 @ 17:55:09 End 2026.08.01 @ 18:53:29 Sessions 1 Manual Loads 0 Difficulty Rogue Special Mode None Game No. 36 Rogue 36 Adventurer 0 Explorer 0 Win Type - Total 0 Types 0/0/0/0/0/0/0/0/0/0 Lore% 18 Gallery% 20 Achievement% 30 Wizard Run 0 Options --------- Layout 1 ASCII 0 Keyboard 0 Movement Numpad Keybinds 0 Fullscreen 1 Font 16/SmallcapsGlow Map View 50x35 Zoom Use 0% Tactical HUD 1 Map Filters NONE Filters NONE Steam 1 RUN: 253fc10f-8383-47b2-b8de-3be0964bd5aa